[Event "*** SCC Grand Prix: Titled Tuesday Blitz"]
[Site "Chess.com"]
[Date "2020.06.09"]
[Round "10"]
[White "DonPreuss"]
[Black "MYMChessAcademy"]
[Result "1-0"]
[WhiteElo "2232"]
[BlackElo "2344"]
[TimeControl "180+1"]
[EndTime "10:56:57 PDT"]
[Termination "DonPreuss won on time"]

1. d4 {[%clk 0:03:00.9]} 1... Nf6 {[%clk 0:02:58.6]} 2. Nc3 {[%clk 0:03:00.6]}
2... d5 {[%clk 0:02:57.2]} 3. e4 {[%clk 0:03:00.9]} 3... dxe4 {[%clk 0:02:56.5]}
4. f3 {[%clk 0:03:01.3]} 4... exf3 {[%clk 0:02:55.9]} 5. Nxf3 {[%clk 0:03:02.2]}
5... e6 {[%clk 0:02:51.8]} 6. Bd3 {[%clk 0:03:01.9]} 6... Be7 {[%clk 0:02:51.9]}
7. O-O {[%clk 0:03:02.3]} 7... c5 {[%clk 0:02:47.7]} 8. dxc5 {[%clk 0:03:01.6]}
8... Bxc5+ {[%clk 0:02:46.4]} 9. Kh1 {[%clk 0:03:01.4]} 9... h6 {[%clk
0:02:36.1]} 10. Qe1 {[%clk 0:03:01.2]} 10... O-O {[%clk 0:02:07.8]} 11. Qh4
{[%clk 0:03:00.5]} 11... e5 {[%clk 0:01:31.5]} 12. Bxh6 {[%clk 0:02:57.6]} 12...
e4 {[%clk 0:01:06.2]} 13. Nxe4 {[%clk 0:02:01.6]} 13... Nxe4 {[%clk 0:01:01.9]}
14. Qxe4 {[%clk 0:02:00.8]} 14... f5 {[%clk 0:00:59.6]} 15. Qc4+ {[%clk
0:01:55]} 15... Kh8 {[%clk 0:00:59.6]} 16. Bxg7+ {[%clk 0:01:40.7]} 16... Kxg7
{[%clk 0:01:00.5]} 17. Qxc5 {[%clk 0:01:41]} 17... Nc6 {[%clk 0:00:59.7]} 18.
Ne5 {[%clk 0:01:32.6]} 18... Qd4 {[%clk 0:00:53.3]} 19. Qxd4 {[%clk 0:01:19.8]}
19... Nxd4 {[%clk 0:00:54.2]} 20. Rf4 {[%clk 0:01:18.7]} 20... Nc6 {[%clk
0:00:35]} 21. Nxc6 {[%clk 0:01:17.6]} 21... bxc6 {[%clk 0:00:35.9]} 22. Raf1
{[%clk 0:01:17.3]} 22... Rb8 {[%clk 0:00:36.2]} 23. b3 {[%clk 0:01:16.3]} 23...
Be6 {[%clk 0:00:18.3]} 24. Bxf5 {[%clk 0:01:14.4]} 24... Bd5 {[%clk 0:00:18.4]}
25. Bd3 {[%clk 0:01:04]} 25... Rxf4 {[%clk 0:00:13.7]} 26. Rxf4 {[%clk
0:01:04.9]} 26... Re8 {[%clk 0:00:13.8]} 27. h3 {[%clk 0:01:05.3]} 27... Re1+
{[%clk 0:00:13]} 28. Kh2 {[%clk 0:01:05.5]} 28... Rd1 {[%clk 0:00:11]} 29. a4
{[%clk 0:01:04.1]} 29... Rd2 {[%clk 0:00:10.8]} 30. Rg4+ {[%clk 0:01:03.3]}
30... Kf7 {[%clk 0:00:11.2]} 31. h4 {[%clk 0:01:03.1]} 31... a5 {[%clk
0:00:11.1]} 32. h5 {[%clk 0:01:02.5]} 32... Be6 {[%clk 0:00:09.3]} 33. Rg3
{[%clk 0:01:01]} 33... Rf2 {[%clk 0:00:02.1]} 34. h6 {[%clk 0:01:01]} 34... Ke7
{[%clk 0:00:02.3]} 35. h7 {[%clk 0:01:00.8]} 35... Rf8 {[%clk 0:00:02.9]} 36.
Rg5 {[%clk 0:00:51]} 36... Rh8 {[%clk 0:00:03]} 37. Rxa5 {[%clk 0:00:50.3]}
37... Bg8 {[%clk 0:00:02.7]} 38. g4 {[%clk 0:00:46.8]} 1-0

[Event "*** SCC Grand Prix: Titled Tuesday Blitz"]
[Site "Chess.com"]
[Date "2020.06.09"]
[Round "10"]
[White "IriBu"]
[Black "killer311"]
[Result "0-1"]
[WhiteElo "2517"]
[BlackElo "2407"]
[TimeControl "180+1"]
[EndTime "10:57:00 PDT"]
[Termination "killer311 won by resignation"]

1. e4 {[%clk 0:03:00.9]} 1... c6 {[%clk 0:02:59.7]} 2. d4 {[%clk 0:03:00.3]}
2... d5 {[%clk 0:03:00.6]} 3. e5 {[%clk 0:03:00.7]} 3... Bf5 {[%clk 0:03:00]} 4.
Nf3 {[%clk 0:03:00.3]} 4... e6 {[%clk 0:02:59.4]} 5. Be2 {[%clk 0:03:00.4]} 5...
c5 {[%clk 0:02:58.5]} 6. c3 {[%clk 0:02:58.9]} 6... Nc6 {[%clk 0:02:57.8]} 7.
O-O {[%clk 0:02:58.2]} 7... cxd4 {[%clk 0:02:58.1]} 8. cxd4 {[%clk 0:02:58]}
8... Nge7 {[%clk 0:02:58.8]} 9. Nbd2 {[%clk 0:02:39.8]} 9... Bg4 {[%clk
0:02:52.5]} 10. h3 {[%clk 0:02:38.7]} 10... Bh5 {[%clk 0:02:52.5]} 11. a3 {[%clk
0:02:31.6]} 11... Bxf3 {[%clk 0:02:50.8]} 12. Nxf3 {[%clk 0:02:30.6]} 12... Nf5
{[%clk 0:02:51.7]} 13. Be3 {[%clk 0:02:23.9]} 13... Be7 {[%clk 0:02:51.9]} 14.
Qd2 {[%clk 0:02:19.2]} 14... O-O {[%clk 0:02:49.1]} 15. Bd3 {[%clk 0:02:16]}
15... Nxe3 {[%clk 0:02:47.4]} 16. Qxe3 {[%clk 0:01:59.7]} 16... h6 {[%clk
0:02:47.3]} 17. b4 {[%clk 0:01:53.8]} 17... a6 {[%clk 0:02:46.4]} 18. Nd2 {[%clk
0:01:51.5]} 18... Rc8 {[%clk 0:02:45.8]} 19. f4 {[%clk 0:01:48.9]} 19... Qb6
{[%clk 0:02:43.9]} 20. Nb3 {[%clk 0:01:41]} 20... a5 {[%clk 0:02:42]} 21. Nc5
{[%clk 0:01:03.9]} 21... Nxd4 {[%clk 0:02:25.6]} 22. Qxd4 {[%clk 0:00:53.3]}
22... Rxc5 {[%clk 0:02:24.6]} 23. Rac1 {[%clk 0:00:44.4]} 23... axb4 {[%clk
0:02:16.9]} 24. axb4 {[%clk 0:00:43.8]} 24... Rc6 {[%clk 0:02:17.1]} 25. Qxb6
{[%clk 0:00:40.8]} 25... Rxb6 {[%clk 0:02:18]} 26. b5 {[%clk 0:00:37.6]} 26...
f6 {[%clk 0:02:18.1]} 27. Rc7 {[%clk 0:00:30.9]} 27... Bd8 {[%clk 0:02:17.5]}
28. Rd7 {[%clk 0:00:26.8]} 28... fxe5 {[%clk 0:02:11.8]} 29. fxe5 {[%clk
0:00:26.6]} 29... Rxf1+ {[%clk 0:02:12.5]} 30. Kxf1 {[%clk 0:00:26.3]} 30... Bg5
{[%clk 0:02:12.6]} 31. g3 {[%clk 0:00:19.9]} 31... Kf8 {[%clk 0:02:10.6]} 32.
Ke2 {[%clk 0:00:18.9]} 32... Be7 {[%clk 0:02:01.7]} 33. Ke3 {[%clk 0:00:17.5]}
33... Bc5+ {[%clk 0:02:00.2]} 34. Kf4 {[%clk 0:00:17.2]} 34... Bd4 {[%clk
0:02:00.2]} 35. h4 {[%clk 0:00:14.7]} 35... g5+ {[%clk 0:01:58.4]} 36. hxg5
{[%clk 0:00:14.6]} 36... hxg5+ {[%clk 0:01:59.3]} 37. Kxg5 {[%clk 0:00:14.3]}
37... Bxe5 {[%clk 0:01:59.9]} 38. Kg6 {[%clk 0:00:14.2]} 38... Bxg3 {[%clk
0:01:52.7]} 39. Kf6 {[%clk 0:00:14.5]} 39... Bh4+ {[%clk 0:01:52]} 40. Ke5
{[%clk 0:00:14]} 40... Bg3+ {[%clk 0:01:51.3]} 41. Kd4 {[%clk 0:00:13.3]} 41...
Bf2+ {[%clk 0:01:50.5]} 42. Ke5 {[%clk 0:00:13.8]} 42... Bg3+ {[%clk 0:01:49.6]}
43. Kd4 {[%clk 0:00:14.2]} 43... Rd6 {[%clk 0:01:48.1]} 44. Rxb7 {[%clk
0:00:13.5]} 44... e5+ {[%clk 0:01:47.8]} 45. Kc5 {[%clk 0:00:13.9]} 45... e4
{[%clk 0:01:46.9]} 46. Bc2 {[%clk 0:00:13.8]} 46... e3 {[%clk 0:01:46]} 47. Bd3
{[%clk 0:00:13.9]} 47... d4 {[%clk 0:01:45.4]} 48. b6 {[%clk 0:00:14.2]} 48...
Rf6 {[%clk 0:01:44.3]} 49. Rd7 {[%clk 0:00:14.2]} 49... Rf2 {[%clk 0:01:38.3]}
50. b7 {[%clk 0:00:14]} 50... Rd2 {[%clk 0:01:37]} 51. Rxd4 {[%clk 0:00:12.7]}
51... e2 {[%clk 0:01:34]} 52. Rd8+ {[%clk 0:00:12.5]} 52... Kf7 {[%clk
0:01:33.3]} 53. b8=Q {[%clk 0:00:12.5]} 53... Bxb8 {[%clk 0:01:31.4]} 54. Rxb8
{[%clk 0:00:12.3]} 54... Rxd3 {[%clk 0:01:31.6]} 55. Rb1 {[%clk 0:00:11.2]}
55... Rd1 {[%clk 0:01:31]} 56. Rb7+ {[%clk 0:00:11.3]} 56... Kf6 {[%clk
0:01:30.7]} 0-1

[Event "*** SCC Grand Prix: Titled Tuesday Blitz"]
[Site "Chess.com"]
[Date "2020.06.09"]
[Round "10"]
[White "BIG_Pirate"]
[Black "kingmonkey2006"]
[Result "0-1"]
[WhiteElo "2416"]
[BlackElo "2576"]
[TimeControl "180+1"]
[EndTime "10:57:01 PDT"]
[Termination "kingmonkey2006 won on time"]

1. Nf3 {[%clk 0:03:00.9]} 1... Nf6 {[%clk 0:02:59.2]} 2. c4 {[%clk 0:03:00.4]}
2... e6 {[%clk 0:02:59.6]} 3. g3 {[%clk 0:03:00.1]} 3... d5 {[%clk 0:02:59.9]}
4. Bg2 {[%clk 0:03:00.3]} 4... Be7 {[%clk 0:03:00.8]} 5. O-O {[%clk 0:03:00.3]}
5... O-O {[%clk 0:03:01.6]} 6. d4 {[%clk 0:03:00.6]} 6... c6 {[%clk 0:03:02]} 7.
Nbd2 {[%clk 0:02:59.7]} 7... b6 {[%clk 0:03:00.9]} 8. Qc2 {[%clk 0:02:59.4]}
8... Bb7 {[%clk 0:02:59.8]} 9. e4 {[%clk 0:02:59.3]} 9... Na6 {[%clk 0:02:59.4]}
10. Rd1 {[%clk 0:02:54.4]} 10... Rc8 {[%clk 0:02:56.5]} 11. b3 {[%clk
0:02:53.5]} 11... c5 {[%clk 0:02:30.1]} 12. exd5 {[%clk 0:02:52.7]} 12... exd5
{[%clk 0:02:28.9]} 13. Bb2 {[%clk 0:02:52.9]} 13... Qc7 {[%clk 0:02:27.3]} 14.
Qf5 {[%clk 0:02:46.7]} 14... Rfd8 {[%clk 0:02:21.8]} 15. dxc5 {[%clk 0:02:35.4]}
15... Nxc5 {[%clk 0:02:19.9]} 16. Ng5 {[%clk 0:02:34.1]} 16... g6 {[%clk
0:02:10]} 17. Qh3 {[%clk 0:02:30.4]} 17... h5 {[%clk 0:02:00.4]} 18. cxd5 {[%clk
0:02:08.1]} 18... Bxd5 {[%clk 0:01:47.1]} 19. Bxd5 {[%clk 0:01:11.9]} 19... Rxd5
{[%clk 0:01:45]} 20. Ndf3 {[%clk 0:00:57.9]} 20... Nd3 {[%clk 0:01:40.8]} 21.
Bd4 {[%clk 0:00:34.3]} 21... Nb4 {[%clk 0:01:15.7]} 22. Rac1 {[%clk 0:00:20.8]}
22... Qxc1 {[%clk 0:01:11.5]} 23. Rxc1 {[%clk 0:00:21.7]} 23... Rxc1+ {[%clk
0:01:12.4]} 24. Kg2 {[%clk 0:00:22]} 24... Ng4 {[%clk 0:01:08.8]} 25. Ne4 {[%clk
0:00:08.6]} 25... Nd3 {[%clk 0:00:56.8]} 26. Be3 {[%clk 0:00:04.4]} 26... Rc2
{[%clk 0:00:41.1]} 27. Nfd2 {[%clk 0:00:01.8]} 27... f5 {[%clk 0:00:38.4]} 0-1

[Event "*** SCC Grand Prix: Titled Tuesday Blitz"]
[Site "Chess.com"]
[Date "2020.06.09"]
[Round "10"]
[White "ShahMatKanal"]
[Black "joksijoksi"]
[Result "1-0"]
[WhiteElo "2473"]
[BlackElo "2351"]
[TimeControl "180+1"]
[EndTime "10:57:04 PDT"]
[Termination "ShahMatKanal won on time"]

1. e4 {[%clk 0:03:00.9]} 1... e6 {[%clk 0:02:44.1]} 2. Qe2 {[%clk 0:02:59.8]}
2... c5 {[%clk 0:02:42.1]} 3. g3 {[%clk 0:02:52.6]} 3... Nf6 {[%clk 0:02:35.5]}
4. Bg2 {[%clk 0:02:52.6]} 4... Be7 {[%clk 0:02:35.9]} 5. d3 {[%clk 0:02:48.4]}
5... O-O {[%clk 0:02:33.6]} 6. Nd2 {[%clk 0:02:43.4]} 6... Nc6 {[%clk
0:02:29.4]} 7. Ngf3 {[%clk 0:02:41.1]} 7... d5 {[%clk 0:02:25.1]} 8. O-O {[%clk
0:02:39.7]} 8... Kh8 {[%clk 0:02:20.2]} 9. h3 {[%clk 0:02:31.4]} 9... b5 {[%clk
0:02:04.1]} 10. a4 {[%clk 0:02:29.7]} 10... b4 {[%clk 0:01:56.2]} 11. b3 {[%clk
0:02:19.2]} 11... a5 {[%clk 0:01:53.9]} 12. Bb2 {[%clk 0:02:18.8]} 12... d4
{[%clk 0:01:49.4]} 13. Nc4 {[%clk 0:02:16.5]} 13... Nd7 {[%clk 0:01:45.4]} 14.
Nh2 {[%clk 0:02:10.5]} 14... e5 {[%clk 0:01:43.7]} 15. f4 {[%clk 0:02:09.4]}
15... f6 {[%clk 0:01:41.5]} 16. Ng4 {[%clk 0:01:55.6]} 16... Nb6 {[%clk
0:01:26]} 17. Nd2 {[%clk 0:01:24.9]} 17... Qd6 {[%clk 0:01:17.1]} 18. Rf2 {[%clk
0:01:18.6]} 18... Be6 {[%clk 0:01:15.1]} 19. Raf1 {[%clk 0:01:18.1]} 19... exf4
{[%clk 0:01:04.2]} 20. gxf4 {[%clk 0:01:16.9]} 20... f5 {[%clk 0:01:03.6]} 21.
exf5 {[%clk 0:01:06.6]} 21... Bxf5 {[%clk 0:00:54.9]} 22. Bxc6 {[%clk
0:00:58.6]} 22... Qxc6 {[%clk 0:00:31.9]} 23. Qxe7 {[%clk 0:00:58.3]} 23... Nd5
{[%clk 0:00:22.9]} 24. Qh4 {[%clk 0:00:46.7]} 24... Ne3 {[%clk 0:00:22.6]} 25.
Nxe3 {[%clk 0:00:35]} 25... dxe3 {[%clk 0:00:23.5]} 26. Rg2 {[%clk 0:00:35.5]}
26... Ra7 {[%clk 0:00:08]} 27. Nc4 {[%clk 0:00:34.8]} 27... Re7 {[%clk 0:00:05]}
28. Ne5 {[%clk 0:00:32.8]} 28... Qe6 {[%clk 0:00:04.1]} 29. Qg3 {[%clk
0:00:29.2]} 29... h6 {[%clk 0:00:02.2]} 30. Qxe3 {[%clk 0:00:28.1]} 1-0

[Event "*** SCC Grand Prix: Titled Tuesday Blitz"]
[Site "Chess.com"]
[Date "2020.06.09"]
[Round "10"]
[White "DrBergerBerger"]
[Black "Fins0905"]
[Result "0-1"]
[WhiteElo "2442"]
[BlackElo "2630"]
[TimeControl "180+1"]
[EndTime "10:57:06 PDT"]
[Termination "Fins0905 won by resignation"]

1. e4 {[%clk 0:03:00.9]} 1... d5 {[%clk 0:02:59]} 2. exd5 {[%clk 0:03:00.4]}
2... Qxd5 {[%clk 0:02:59.2]} 3. Nc3 {[%clk 0:03:01]} 3... Qa5 {[%clk 0:02:58.8]}
4. d4 {[%clk 0:03:00.4]} 4... Nf6 {[%clk 0:02:58.7]} 5. Nf3 {[%clk 0:03:00.3]}
5... Bf5 {[%clk 0:02:56.8]} 6. Ne5 {[%clk 0:02:58.7]} 6... c6 {[%clk 0:02:55.4]}
7. Bc4 {[%clk 0:02:55.2]} 7... e6 {[%clk 0:02:54.8]} 8. g4 {[%clk 0:02:55.5]}
8... Bg6 {[%clk 0:02:53.6]} 9. h4 {[%clk 0:02:55.2]} 9... Nbd7 {[%clk
0:02:53.2]} 10. Nxd7 {[%clk 0:02:45.4]} 10... Nxd7 {[%clk 0:02:54.1]} 11. h5
{[%clk 0:02:42.5]} 11... Be4 {[%clk 0:02:53.7]} 12. O-O {[%clk 0:02:37]} 12...
Bd5 {[%clk 0:02:52.7]} 13. Nxd5 {[%clk 0:02:30.5]} 13... cxd5 {[%clk 0:02:51.6]}
14. Bd3 {[%clk 0:02:30]} 14... Bd6 {[%clk 0:02:47.8]} 15. Qf3 {[%clk 0:02:25.6]}
15... O-O {[%clk 0:02:36.3]} 16. Kg2 {[%clk 0:02:14.3]} 16... Qc7 {[%clk
0:02:27.7]} 17. Bd2 {[%clk 0:01:51.6]} 17... Nb6 {[%clk 0:02:08.5]} 18. b3
{[%clk 0:01:44.2]} 18... e5 {[%clk 0:02:02]} 19. dxe5 {[%clk 0:01:40.5]} 19...
Bxe5 {[%clk 0:02:02.9]} 20. Rae1 {[%clk 0:01:40.1]} 20... g6 {[%clk 0:01:59]}
21. Bh6 {[%clk 0:01:18.6]} 21... Rfe8 {[%clk 0:01:51.8]} 22. Re2 {[%clk
0:01:12.2]} 22... Bc3 {[%clk 0:01:44.7]} 23. Bf4 {[%clk 0:01:03]} 23... Qc6
{[%clk 0:01:39.8]} 24. a4 {[%clk 0:01:00]} 24... a6 {[%clk 0:01:34.5]} 25. a5
{[%clk 0:00:49]} 25... Nd7 {[%clk 0:01:18.7]} 26. Bh6 {[%clk 0:00:25.3]} 26...
Ne5 {[%clk 0:01:09.4]} 27. Qg3 {[%clk 0:00:19.3]} 27... Nxd3 {[%clk 0:01:04.6]}
28. Qxd3 {[%clk 0:00:19.1]} 28... Re4 {[%clk 0:00:55.5]} 29. f3 {[%clk
0:00:18.4]} 29... Rxe2+ {[%clk 0:00:53.8]} 30. Qxe2 {[%clk 0:00:19.3]} 30... Re8
{[%clk 0:00:53.9]} 31. Qd3 {[%clk 0:00:19.5]} 31... Bxa5 {[%clk 0:00:48.3]} 32.
Rf2 {[%clk 0:00:17.9]} 32... Qe6 {[%clk 0:00:42.4]} 33. hxg6 {[%clk 0:00:14.9]}
33... hxg6 {[%clk 0:00:41.1]} 34. Qd4 {[%clk 0:00:14.4]} 34... f6 {[%clk
0:00:38.6]} 35. Qd3 {[%clk 0:00:14.5]} 35... Kf7 {[%clk 0:00:35.9]} 36. Qd4
{[%clk 0:00:09.8]} 36... Bb6 {[%clk 0:00:35]} 0-1

[Event "*** SCC Grand Prix: Titled Tuesday Blitz"]
[Site "Chess.com"]
[Date "2020.06.09"]
[Round "10"]
[White "Playgood28"]
[Black "anastasiyakarlovych"]
[Result "1-0"]
[WhiteElo "2258"]
[BlackElo "1990"]
[TimeControl "180+1"]
[EndTime "10:57:07 PDT"]
[Termination "Playgood28 won on time"]

1. d4 {[%clk 0:03:00.9]} 1... d5 {[%clk 0:02:58]} 2. c4 {[%clk 0:03:00.4]} 2...
Bf5 {[%clk 0:02:56.4]} 3. Nc3 {[%clk 0:02:59.4]} 3... e6 {[%clk 0:02:55.8]} 4.
cxd5 {[%clk 0:02:58.4]} 4... exd5 {[%clk 0:02:55.1]} 5. Qb3 {[%clk 0:02:58.1]}
5... Nc6 {[%clk 0:02:54.4]} 6. Nf3 {[%clk 0:02:57.8]} 6... Nf6 {[%clk
0:02:50.4]} 7. a3 {[%clk 0:02:23.5]} 7... Na5 {[%clk 0:02:37.6]} 8. Qd1 {[%clk
0:02:22]} 8... Be7 {[%clk 0:02:32.6]} 9. e3 {[%clk 0:02:18.5]} 9... O-O {[%clk
0:02:28.9]} 10. Be2 {[%clk 0:02:18.3]} 10... Nc6 {[%clk 0:02:21.2]} 11. O-O
{[%clk 0:02:16.6]} 11... Ne4 {[%clk 0:02:17.4]} 12. Nxe4 {[%clk 0:02:14.8]}
12... dxe4 {[%clk 0:02:11]} 13. Nd2 {[%clk 0:02:13.7]} 13... Bd6 {[%clk
0:02:09.6]} 14. Nc4 {[%clk 0:02:07.6]} 14... Be7 {[%clk 0:02:03.9]} 15. b4
{[%clk 0:02:06.1]} 15... a5 {[%clk 0:01:43.7]} 16. b5 {[%clk 0:02:01.3]} 16...
Nb8 {[%clk 0:01:41.4]} 17. a4 {[%clk 0:01:57.8]} 17... Nd7 {[%clk 0:01:39.9]}
18. Ba3 {[%clk 0:01:56.5]} 18... Bxa3 {[%clk 0:01:34.1]} 19. Rxa3 {[%clk
0:01:56.1]} 19... Qg5 {[%clk 0:01:33.3]} 20. Re1 {[%clk 0:01:49.7]} 20... Nf6
{[%clk 0:01:23.2]} 21. Ne5 {[%clk 0:01:48]} 21... Rad8 {[%clk 0:01:15.3]} 22.
Rc3 {[%clk 0:01:46.4]} 22... Nd7 {[%clk 0:01:05.4]} 23. Nxd7 {[%clk 0:01:37]}
23... Rxd7 {[%clk 0:01:05.4]} 24. Qc1 {[%clk 0:01:35.7]} 24... Rc8 {[%clk
0:01:01.6]} 25. Rc5 {[%clk 0:01:32.1]} 25... Qg6 {[%clk 0:01:00.1]} 26. Qc3
{[%clk 0:01:26.5]} 26... b6 {[%clk 0:00:51.5]} 27. Rc6 {[%clk 0:01:24.8]} 27...
Qg5 {[%clk 0:00:31.6]} 28. Rxb6 {[%clk 0:01:11.9]} 28... Rxd4 {[%clk 0:00:23.3]}
29. Qxd4 {[%clk 0:00:54.2]} 29... cxb6 {[%clk 0:00:22.8]} 30. Qxb6 {[%clk
0:00:53.3]} 30... Bh3 {[%clk 0:00:11]} 31. Bf1 {[%clk 0:00:47.8]} 31... h5
{[%clk 0:00:08.9]} 32. Kh1 {[%clk 0:00:40.9]} 32... Be6 {[%clk 0:00:07.2]} 33.
Qxa5 {[%clk 0:00:38]} 33... Rc2 {[%clk 0:00:03.7]} 34. Qa8+ {[%clk 0:00:36.6]}
1-0

[Event "*** SCC Grand Prix: Titled Tuesday Blitz"]
[Site "Chess.com"]
[Date "2020.06.09"]
[Round "10"]
[White "Berardino"]
[Black "ftorodent"]
[Result "0-1"]
[WhiteElo "2528"]
[BlackElo "2667"]
[TimeControl "180+1"]
[EndTime "10:57:08 PDT"]
[Termination "ftorodent won on time"]

1. e4 {[%clk 0:03:00.9]} 1... c5 {[%clk 0:02:56.1]} 2. Nf3 {[%clk 0:02:57]} 2...
e6 {[%clk 0:02:56.2]} 3. d4 {[%clk 0:02:56.5]} 3... cxd4 {[%clk 0:02:56.4]} 4.
Nxd4 {[%clk 0:02:57.4]} 4... a6 {[%clk 0:02:56.9]} 5. Nc3 {[%clk 0:02:57.3]}
5... b5 {[%clk 0:02:56.8]} 6. Bd3 {[%clk 0:02:57.2]} 6... Qb6 {[%clk 0:02:54.7]}
7. Nf3 {[%clk 0:02:54.9]} 7... Nc6 {[%clk 0:02:54.3]} 8. O-O {[%clk 0:02:54.7]}
8... Qb8 {[%clk 0:02:52.6]} 9. Re1 {[%clk 0:02:51]} 9... Be7 {[%clk 0:02:46.4]}
10. Bd2 {[%clk 0:02:12.3]} 10... d6 {[%clk 0:02:40.7]} 11. a4 {[%clk 0:02:12.1]}
11... b4 {[%clk 0:02:40.3]} 12. Na2 {[%clk 0:02:11.1]} 12... Nf6 {[%clk
0:02:40]} 13. c3 {[%clk 0:01:58.6]} 13... bxc3 {[%clk 0:02:34.9]} 14. Bxc3
{[%clk 0:01:58.6]} 14... O-O {[%clk 0:02:31.9]} 15. b4 {[%clk 0:01:56.2]} 15...
Bb7 {[%clk 0:02:19.9]} 16. Qb3 {[%clk 0:01:41.4]} 16... Rd8 {[%clk 0:02:07.9]}
17. Rad1 {[%clk 0:01:31.4]} 17... d5 {[%clk 0:01:59.9]} 18. exd5 {[%clk
0:00:32.4]} 18... Nxd5 {[%clk 0:01:58.6]} 19. Bd2 {[%clk 0:00:25.7]} 19... Ncxb4
{[%clk 0:01:42.2]} 20. Nxb4 {[%clk 0:00:22.9]} 20... Nxb4 {[%clk 0:01:40.4]} 21.
Bxb4 {[%clk 0:00:18.7]} 21... Bxf3 {[%clk 0:01:40.2]} 22. Rb1 {[%clk 0:00:18.2]}
22... Bd5 {[%clk 0:01:12.7]} 23. Qc3 {[%clk 0:00:11.7]} 23... Bxb4 {[%clk
0:01:05.2]} 24. Rxb4 {[%clk 0:00:12.6]} 24... Qd6 {[%clk 0:00:59.7]} 25. Rg4
{[%clk 0:00:10.8]} 25... g6 {[%clk 0:00:58]} 26. Bb1 {[%clk 0:00:09.5]} 26...
Rdc8 {[%clk 0:00:45.2]} 27. Qf6 {[%clk 0:00:08.4]} 27... Qd8 {[%clk 0:00:45.3]}
28. Qe5 {[%clk 0:00:08]} 28... Qc7 {[%clk 0:00:35.2]} 29. Qe2 {[%clk 0:00:02.4]}
29... Rab8 {[%clk 0:00:32.9]} 30. h4 {[%clk 0:00:02.5]} 30... Qc3 {[%clk
0:00:25.2]} 0-1

[Event "*** SCC Grand Prix: Titled Tuesday Blitz"]
[Site "Chess.com"]
[Date "2020.06.09"]
[Round "10"]
[White "m-garcett"]
[Black "PattyCastillo"]
[Result "1-0"]
[WhiteElo "2076"]
[BlackElo "1903"]
[TimeControl "180+1"]
[EndTime "10:57:08 PDT"]
[Termination "m-garcett won on time"]

1. e4 {[%clk 0:03:00.9]} 1... c5 {[%clk 0:02:58.4]} 2. Nf3 {[%clk 0:03:00.1]}
2... d6 {[%clk 0:02:56.4]} 3. d4 {[%clk 0:03:00.5]} 3... cxd4 {[%clk 0:02:56.2]}
4. Nxd4 {[%clk 0:03:01.4]} 4... Nf6 {[%clk 0:02:56.7]} 5. Nc3 {[%clk 0:03:02]}
5... a6 {[%clk 0:02:57.2]} 6. Bg5 {[%clk 0:03:02.2]} 6... e6 {[%clk 0:02:57.1]}
7. f4 {[%clk 0:03:02.8]} 7... h6 {[%clk 0:02:56.7]} 8. Bh4 {[%clk 0:03:01.8]}
8... Qb6 {[%clk 0:02:54.2]} 9. a3 {[%clk 0:03:00]} 9... Be7 {[%clk 0:02:48.6]}
10. Bf2 {[%clk 0:02:59.9]} 10... Qc7 {[%clk 0:02:48.1]} 11. Qf3 {[%clk
0:03:00.2]} 11... Nbd7 {[%clk 0:02:44.7]} 12. O-O-O {[%clk 0:03:00.6]} 12... b5
{[%clk 0:02:44.5]} 13. g4 {[%clk 0:03:00.1]} 13... Bb7 {[%clk 0:02:44.4]} 14. h4
{[%clk 0:02:58.4]} 14... Nc5 {[%clk 0:02:36]} 15. Bd3 {[%clk 0:02:34.9]} 15...
h5 {[%clk 0:01:58.8]} 16. gxh5 {[%clk 0:02:17.6]} 16... Rxh5 {[%clk 0:01:34]}
17. Rhg1 {[%clk 0:02:17.4]} 17... g6 {[%clk 0:01:30.2]} 18. Qe2 {[%clk 0:02:08]}
18... O-O-O {[%clk 0:01:27.2]} 19. f5 {[%clk 0:01:57.3]} 19... e5 {[%clk
0:01:19.5]} 20. Nb3 {[%clk 0:01:44.9]} 20... Nxb3+ {[%clk 0:01:06.1]} 21. cxb3
{[%clk 0:01:45.8]} 21... d5 {[%clk 0:00:59]} 22. exd5 {[%clk 0:01:32.7]} 22...
Nxd5 {[%clk 0:00:58.1]} 23. Kb1 {[%clk 0:01:24.3]} 23... Nxc3+ {[%clk
0:00:53.9]} 24. bxc3 {[%clk 0:01:25.2]} 24... Kb8 {[%clk 0:00:47.2]} 25. fxg6
{[%clk 0:01:21.7]} 25... fxg6 {[%clk 0:00:43.4]} 26. Bxg6 {[%clk 0:01:19.5]}
26... Rhh8 {[%clk 0:00:38]} 27. Qe3 {[%clk 0:01:13.9]} 27... Bc6 {[%clk
0:00:14.8]} 28. Bg3 {[%clk 0:00:59.2]} 28... Bd6 {[%clk 0:00:10.9]} 29. Rge1
{[%clk 0:00:53.8]} 29... Rhe8 {[%clk 0:00:09.5]} 30. Bxe8 {[%clk 0:00:52.9]}
30... Rxe8 {[%clk 0:00:08.6]} 31. Rxd6 {[%clk 0:00:35.5]} 31... Qxd6 {[%clk
0:00:07.7]} 32. Bxe5 {[%clk 0:00:35.5]} 32... Rxe5 {[%clk 0:00:06.3]} 33. Qxe5
{[%clk 0:00:36.4]} 33... Qxe5 {[%clk 0:00:06.2]} 34. Rxe5 {[%clk 0:00:37.3]}
34... Kb7 {[%clk 0:00:06.3]} 35. h5 {[%clk 0:00:37]} 35... Bf3 {[%clk
0:00:03.8]} 36. h6 {[%clk 0:00:36.9]} 36... Bd1 {[%clk 0:00:01.7]} 37. h7 {[%clk
0:00:35.7]} 1-0